Workbook

Sheet Expenses
A1: 11891 FM 1409 - Dayton Tx | C1: KDTC INVESTMENT, established 3/22/2017
A2: Phone: 281 748 3263 | D2: 2026 | E2: 2026 | F2: 2026 | G2: 2026 | H2: 2026 | I2: 2026 | J2: 2026 | K2: 2026 | L2: 2026 | M2: 2026 | N2: 2026 | O2: 2026 | P2: 2026 | Q2: 2026 | R2: 2026 | S2: 2026 | T2: 2026 | U2: 2026 | V2: 2026
A3: Alt address: 15 River Terrace Dr Lot12 (Stephanie Adams) | D3: Jan | E3: Feb | F3: Mar | G3: Apr | H3: May | I3: April | J3: May | K3: Jun | L3: July | M3: May | N3: Sep | O3: Oct | P3: Nov | Q3: June | R3: Aug | S3: Sept | T3: Octo | U3: Nov | V3: Dec
A4: Tenants | B4: Lease | C4: Notes
A5: Right 1A: Richard | B5: 850 | D5: 600 | E5: 600 | F5: 600 | I5: 625 | J5: 625 | K5: 625 | L5: 625 | M5: 625 | N5: 625 | O5: 625 | P5: 625 | Q5: 625 | R5: 625 | S5: 625 | T5: 625 | U5: 625 | V5: 625
A6: Right 2A: Owner RV | C6: owner RV
A7: Right 3A:
A8: Right 4A: Linda Estes | B8: 650 | C8: owner RV | E8: 650 | F8: 650 | G8: 650 | H8: 650 | I8: 650 | J8: 650 | K8: 650 | L8: 650 | M8: 650 | N8: 650 | O8: 650 | P8: 650 | Q8: 650 | R8: 650 | S8: 650 | T8: 650 | U8: 650 | V8: 650
A9: Right 5A:
A10: Right 6A: Debra Eastridge | B10: 460 | D10: 460 | E10: 460 | F10: 460 | G10: 460 | H10: 460 | I10: 460 | J10: 460 | K10: 460 | L10: 460 | M10: 460 | N10: 460 | O10: 460 | P10: 460 | Q10: 460 | R10: 460 | S10: 460 | T10: 460 | U10: 460 | V10: 460
A11: Right 7A: Charles Keen | B11: 500 | F11: 500 | I11: 500 | J11: 500 | K11: 500 | L11: 500 | M11: 500 | N11: 500 | O11: 500 | P11: 500 | Q11: 500 | R11: 500 | S11: 500 | T11: 500 | U11: 500 | V11: 500
A12: Right 8A:Cailyn Resweber | B12: 550 | C12: owner RV | F12: 195 | I12: 550 | J12: 550 | K12: 550 | L12: 550 | M12: 550 | N12: 550 | O12: 550 | P12: 550 | Q12: 550 | R12: 550 | S12: 550 | T12: 550 | U12: 550 | V12: 550
A13: Right 10A: New Camper | B13: 750 | I13: 795 | J13: 795 | K13: 795 | L13: 795 | M13: 795 | N13: 795 | O13: 795 | P13: 795 | Q13: 795 | R13: 795 | S13: 795 | T13: 795 | U13: 795 | V13: 795 | W13: New Camper - Tenant in 4/1/26
A14: Right MH 11A: Kathrina | C14: owner MH | D14: 950 | E14: 950 | F14: 950 | G14: 950 | H14: 950 | I14: 1000 | J14: 1000 | K14: 1000 | L14: 1000 | M14: 1000 | N14: 1000 | O14: 1000 | P14: 1000 | Q14: 1000 | R14: 1000 | S14: 1000 | T14: 1000 | U14: 1000 | V14: 1000
A15: Electric bill #10 ESI ID 548100
A16: Right 12A: Patricia | B16: 450 | D16: 450 | E16: 450 | F16: 450 | I16: 475 | J16: 475 | K16: 475 | L16: 475 | M16: 475 | N16: 475 | O16: 475 | P16: 475 | Q16: 475 | R16: 475 | S16: 475 | T16: 475 | U16: 475 | V16: 475
A17: Right MH 13A: Florentino | C17: owner MH | D17: =475+145+50 -> 670 | E17: =475+100+170+300 -> 1045 | F17: 475 | I17: 975 | J17: 975 | K17: 975 | L17: 975 | M17: 975 | N17: 975 | O17: 975 | P17: 975 | Q17: 975 | R17: 975 | S17: 975 | T17: 975 | U17: 975 | V17: 975
A18: Electric bill #12 ESI ID 540118 | D18: =1045-D17 -> 375 | F18: 570
A19: Right 14A: VACANT
A20: Barn Unit: Amanda | B20: 775 | D20: 775 | E20: 400 | F20: 775 | G20: 400 | H20: 400 | I20: 800 | J20: 800 | K20: 800 | L20: 800 | M20: 800 | N20: 800 | O20: 800 | P20: 800 | Q20: 800 | R20: 800 | S20: 800 | T20: 800 | U20: 800 | V20: 800
A21: THESE VACANT SPOTS BELOW RESERVED FOR TINY HOME PROJECT | E21: 375
A22: Tenants | B22: Lease | C22: Notes
A23: Right 2: VACANT
A24: Right 4: VACANT
A25: Right 6 VACANT
A26: Right 8 VACANT
A27: Right 10 VACANT
A28: Right 12 VACANT
A29: Right 14 VACANT
A30: Right 16 VACANT
A31: Right 18 VACANT
A32: Right 20 VACANT
A33: Right 22 VACANT
A34: TENANT LEFT
D38: Jan | E38: Feb | F38: Mar | G38: Apr | H38: May | I38: April | J38: May | K38: Jun | L38: July | M38: May | N38: Sep | O38: Oct | P38: Nov | Q38: June | R38: Aug | S38: Sept | T38: Octo | U38: Nov | V38: Dec | W38: ANNUAL INCOME
A39: Year & Monthly | B39: =SUM(B5:B38) -> 4985 | D39: =SUM(D5:D37) -> 4280 | E39: 4930 | F39: 5625 | G39: 2460 | H39: 2460 | I39: 6830 | J39: 6830 | K39: 6830 | L39: 6830 | M39: 6830 | N39: 6830 | O39: 6830 | P39: 6830 | Q39: 6830 | R39: 6830 | S39: 6830 | T39: 6830 | U39: 6830 | V39: 6830 | W39: =SUM(D39:V39) -> 115375
A40: Cash PMT | D40: =SUM(D37,D16,D14,D5) -> 2000 | E40: =SUM(E5,E14,E16,E37,E8) -> 2650 | F40: =SUM(F5,F14,F16,F37,F8) -> 2650 | G40: =SUM(G5,G14,G16,G37,#REF!) ->  | H40: =SUM(H5,H14,H16,H37,#REF!) ->  | I40: =SUM(I5,I14,I16,#REF!) ->  | J40: =SUM(J5,J14,J16) -> 2100 | K40: 2100 | L40: 2100 | M40: 2100 | N40: 2100 | O40: 2100 | P40: 2100 | Q40: 2100 | R40: 2100 | S40: 2100 | T40: 2100 | U40: 2100 | V40: 2100 | W40: =SUM(D40:V40) -> 
A41: Cash % | D41: =(D40-D39)/D39 -> -0.5327102804 | E41: =(E40-E39)/E39 -> -0.462474645 | F41: -0.5288888889 | J41: -0.6925329429 | K41: -0.6925329429 | L41: -0.6925329429 | M41: -0.6925329429 | N41: -0.6925329429 | O41: -0.6925329429 | P41: -0.6925329429 | Q41: -0.6925329429 | R41: -0.6925329429 | S41: -0.6925329429 | T41: -0.6925329429 | U41: -0.6925329429 | V41: -0.6925329429
A42: PMT Excluded Cash | D42: =D39-D40 -> 2280 | E42: =E39-E40 -> 2280 | F42: 2975 | J42: 4730 | K42: 4730 | L42: 4730 | M42: 4730 | N42: 4730 | O42: 4730 | P42: 4730 | Q42: 4730 | R42: 4730 | S42: 4730 | T42: 4730 | U42: 4730 | V42: =V39-V40 -> 4730 | W42: =SUM(D42:V42) -> 
A44: TOTAL RENT INCOME
A45: 11891 FM 1409 - Dayton Tx | B45: Lease
A46: RV PARK year 2026 P & L | C46: Insurance | D46: Jan | E46: Feb | F46: Mar | G46: Apr | H46: May | I46: April | J46: May | K46: June | L46: July | M46: Jun | N46: Jul | O46: Aug | P46: Sep | Q46: Oct | R46: Aug | S46: Sep | T46: Oct | U46: Nov | V46: Dec
A47: EXPENSES | C47: Expire | D47: 2025 | E47: 2025 | F47: 2025 | G47: 2025 | H47: 2025 | I47: 2025 | J47: 2025 | K47: 2025 | L47: 2025 | M47: 2025 | N47: 2025 | O47: 2025 | P47: 2025 | Q47: 2025 | R47: 2025 | S47: 2025 | T47: 2025 | U47: 2025 | V47: 2025
A48: Maint Repair | D48: 1800 | W48: Paid Septic Service monthly maintenance
A49: Lawn care | D49: 250 | E49: 250 | F49: 250 | I49: 500 | J49: 500 | K49: 500 | L49: 500 | M49: 500 | N49: 500 | O49: 500 | P49: 500 | Q49: 500 | R49: 500 | S49: 500 | T49: 500 | U49: 500 | V49: 250 | W49: Lawn care is an onsite tenant.
A50: Liability Insurance | T50: 1175.48 | W50: Last year GL policy
A51: Electric Total | D51: 720.61 | E51: 806.21 | F51: 594.04 | I51: 700 | J51: 700 | K51: 700 | L51: 700 | M51: 700 | N51: 700 | O51: 700 | P51: 700 | Q51: 700 | R51: 700 | S51: 700 | T51: 700 | U51: 700 | V51: 700
A52: Property Tax | V52: 10661.72 | W52: Last year Tax
A53: Trash pick up Frontier | D53: 212.25 | E53: 212.25 | F53: 210.81 | I53: 212.25 | J53: 212.25 | K53: 212.25 | L53: 212.25 | M53: 212.25 | N53: 212.25 | O53: 212.25 | P53: 212.25 | Q53: 212.25 | R53: 212.25 | S53: 212.25 | T53: 212.25 | U53: 212.25 | V53: 212.25
A54: Montly Expenses | D54: =SUM(D48:D53) -> 2982.86 | E54: =SUM(E48:E53) -> 1268.46 | F54: 1054.85 | G54: 0 | H54: 0 | I54: 1412.25 | J54: 1412.25 | K54: 1412.25 | L54: 1412.25 | M54: 1412.25 | N54: 1412.25 | O54: 1412.25 | P54: 1412.25 | Q54: 1412.25 | R54: 1412.25 | S54: 1412.25 | T54: =SUM(T48:T53) -> 2587.73 | U54: 1412.25 | V54: 11823.97
A55: Yearly Expenses | W55: ANNUAL NET INCOME
A56: Monthly Net Profit | D56: =D39-D54 -> 1297.14 | E56: =E39-E54 -> 3661.54 | F56: 4570.15 | G56: 2460 | H56: 2460 | I56: 5417.75 | J56: 5417.75 | K56: 5417.75 | L56: 5417.75 | M56: 5417.75 | N56: 5417.75 | O56: 5417.75 | P56: 5417.75 | Q56: 5417.75 | R56: 5417.75 | S56: 5417.75 | T56: =T39-T54 -> 4242.27 | U56: 5417.75 | V56: -4993.97 | W56: =SUM(D56:V56) -> 78710.13
V57: SALE $ | W57: 655000
V58: CAP RATE | W58: =W56/W57 -> 0.1201681374
